[Event "Titled Tuesday Blitz February 14 Early 2023"]
[White "Md, Imran"]
[Black "Livaic, Leon"]
[WhiteFideId "25748580"]
[BlackFideId "14531534"]
[WhiteElo "2284"]
[BlackElo "2579"]
[Result "0-1"]
[Round "03"]
[TimeControl "180+2"]
[Date "2023.02.15"]
[WhiteClock "0:00:01"]
[BlackClock "0:00:08"]

1. Nf3 {[%clk 0:03:00]}  Nf6 {[%clk 0:02:59]} 2. e3 {[%clk 0:03:00]}  b6 {[%clk 0:02:58]} 3. c4 {[%clk 0:02:58]}  Bb7 {[%clk 0:02:59]} 4. b3 {[%clk 0:02:58]}  g6 {[%clk 0:02:58]} 5. Bb2 {[%clk 0:02:59]}  Bg7 {[%clk 0:02:59]} 6. Be2 {[%clk 0:02:59]}  O-O {[%clk 0:02:59]} 7. O-O {[%clk 0:02:59]}  d6 {[%clk 0:02:59]} 8. d3 {[%clk 0:02:57]}  e5 {[%clk 0:02:58]} 9. Nbd2 {[%clk 0:02:57]}  Nbd7 {[%clk 0:02:55]} 10. Qc2 {[%clk 0:02:58]}  a5 {[%clk 0:02:54]} 11. a3 {[%clk 0:02:57]}  Re8 {[%clk 0:02:49]} 12. b4 {[%clk 0:02:56]}  e4 {[%clk 0:02:36]} 13. dxe4 {[%clk 0:02:56]}  Nxe4 {[%clk 0:02:37]} 14. Bxg7 {[%clk 0:02:56]}  Kxg7 {[%clk 0:02:38]} 15. Nb3 {[%clk 0:02:54]}  axb4 {[%clk 0:02:28]} 16. axb4 {[%clk 0:02:53]}  Qf6 {[%clk 0:02:29]} 17. Bd3 {[%clk 0:02:18]}  Ng5 {[%clk 0:02:10]} 18. Nfd2 {[%clk 0:02:01]}  Nh3+ {[%clk 0:02:08]} 19. Kh1 {[%clk 0:01:57]}  Rxa1 {[%clk 0:01:42]} 20. Nxa1 {[%clk 0:01:49]}  Nxf2+ {[%clk 0:01:24]} 21. Kg1 {[%clk 0:01:42]}  Nh3+ {[%clk 0:01:24]} 22. Kh1 {[%clk 0:01:01]}  Qe5 {[%clk 0:01:24]} 23. e4 {[%clk 0:00:20]}  Nf2+ {[%clk 0:01:11]} 24. Rxf2 {[%clk 0:00:17]}  Qxa1+ {[%clk 0:01:12]} 25. Rf1 {[%clk 0:00:18]}  Qd4 {[%clk 0:01:07]} 26. Nf3 {[%clk 0:00:17]}  Qe3 {[%clk 0:01:02]} 27. Qb2+ {[%clk 0:00:11]}  Kg8 {[%clk 0:01:02]} 28. Bb1 {[%clk 0:00:10]}  Ne5 {[%clk 0:00:54]} 29. Nd2 {[%clk 0:00:07]}  Ng4 {[%clk 0:00:46]} 30. h3 {[%clk 0:00:07]}  Nf2+ {[%clk 0:00:36]} 31. Kh2 {[%clk 0:00:07]}  Nxe4 {[%clk 0:00:36]} 32. Nxe4 {[%clk 0:00:07]}  Bxe4 {[%clk 0:00:37]} 33. Qf6 {[%clk 0:00:07]}  Rf8 {[%clk 0:00:24]} 34. Qe7 {[%clk 0:00:07]}  f5 {[%clk 0:00:16]} 35. c5 {[%clk 0:00:02]}  Qe2 {[%clk 0:00:10]} 36. Bxe4 {[%clk 0:00:02]}  Qxe4 {[%clk 0:00:11]} 37. Qxc7 {[%clk 0:00:01]}  Qe5+ {[%clk 0:00:11]} 38. Kh1 {[%clk 0:00:01]}  bxc5 {[%clk 0:00:12]} 39. bxc5 {[%clk 0:00:02]}  Qxc5 {[%clk 0:00:13]} 40. Qd7 {[%clk 0:00:03]}  Rf7 {[%clk 0:00:12]} 41. Qa4 {[%clk 0:00:04]}  Kg7 {[%clk 0:00:10]} 42. Qd1 {[%clk 0:00:05]}  d5 {[%clk 0:00:08]} 43. Re1 {[%clk 0:00:05]}  d4 {[%clk 0:00:08]} 44. Qd2 {[%clk 0:00:06]}  Rd7 {[%clk 0:00:08]} 45. Qe2 {[%clk 0:00:06]}  d3 {[%clk 0:00:07]} 46. Qe6 {[%clk 0:00:07]}  Qd5 {[%clk 0:00:07]} 47. Qe8 {[%clk 0:00:07]}  d2 {[%clk 0:00:07]} 48. Re7+ {[%clk 0:00:07]}  Kh6 {[%clk 0:00:06]} 49. Qf8+ {[%clk 0:00:04]}  Kh5 {[%clk 0:00:07]} 50. Rxd7 {[%clk 0:00:01]}  d1=Q+ {[%clk 0:00:07]} 51. Kh2 {[%clk 0:00:01]}  Qe5+ {[%clk 0:00:08]} 0-1


[Site "https://www.chess.com"]

[Event "Titled Tuesday Blitz February 14 Early 2023"]
[White "Yeletsky, Ivan"]
[Black "Sokolovsky, Yahli"]
[WhiteFideId "24180327"]
[BlackFideId "2820242"]
[WhiteElo "2494"]
[BlackElo "2461"]
[Result "1-0"]
[Round "03"]
[TimeControl "180+2"]
[Date "2023.02.15"]
[WhiteClock "0:00:10"]
[BlackClock "0:00:11"]

1. d4 {[%clk 0:03:00]}  d6 {[%clk 0:02:59]} 2. e4 {[%clk 0:03:00]}  g6 {[%clk 0:03:00]} 3. h4 {[%clk 0:02:59]}  h6 {[%clk 0:02:59]} 4. h5 {[%clk 0:02:59]}  g5 {[%clk 0:02:59]} 5. f4 {[%clk 0:03:00]}  gxf4 {[%clk 0:02:49]} 6. Bxf4 {[%clk 0:03:01]}  Nc6 {[%clk 0:02:45]} 7. Nc3 {[%clk 0:03:00]}  Bg7 {[%clk 0:02:41]} 8. d5 {[%clk 0:02:58]}  Ne5 {[%clk 0:02:27]} 9. Nf3 {[%clk 0:02:57]}  Bg4 {[%clk 0:02:24]} 10. Be2 {[%clk 0:02:56]}  Bxf3 {[%clk 0:02:03]} 11. gxf3 {[%clk 0:02:56]}  e6 {[%clk 0:02:04]} 12. Qd2 {[%clk 0:02:47]}  exd5 {[%clk 0:01:53]} 13. Nxd5 {[%clk 0:02:45]}  Ne7 {[%clk 0:01:53]} 14. Ne3 {[%clk 0:02:37]}  Qd7 {[%clk 0:01:49]} 15. Rg1 {[%clk 0:02:34]}  Bf6 {[%clk 0:01:48]} 16. O-O-O {[%clk 0:02:24]}  O-O-O {[%clk 0:01:48]} 17. Kb1 {[%clk 0:02:12]}  Kb8 {[%clk 0:01:38]} 18. Qa5 {[%clk 0:02:01]}  Qc6 {[%clk 0:01:32]} 19. a3 {[%clk 0:01:55]}  Qb6 {[%clk 0:01:20]} 20. Qxb6 {[%clk 0:01:55]}  axb6 {[%clk 0:01:21]} 21. c3 {[%clk 0:01:50]}  Rdg8 {[%clk 0:01:21]} 22. Bg3 {[%clk 0:01:28]}  N7c6 {[%clk 0:00:46]} 23. Nd5 {[%clk 0:01:26]}  Bd8 {[%clk 0:00:46]} 24. f4 {[%clk 0:01:26]}  Ng4 {[%clk 0:00:43]} 25. Bc4 {[%clk 0:01:17]}  Rg7 {[%clk 0:00:39]} 26. b4 {[%clk 0:01:01]}  Rhg8 {[%clk 0:00:39]} 27. Be1 {[%clk 0:00:49]}  Ne7 {[%clk 0:00:37]} 28. Bd2 {[%clk 0:00:39]}  Nxd5 {[%clk 0:00:34]} 29. Bxd5 {[%clk 0:00:40]}  c6 {[%clk 0:00:28]} 30. Bb3 {[%clk 0:00:38]}  Nf2 {[%clk 0:00:27]} 31. Rxg7 {[%clk 0:00:37]}  Rxg7 {[%clk 0:00:28]} 32. Re1 {[%clk 0:00:36]}  Bh4 {[%clk 0:00:29]} 33. Kc2 {[%clk 0:00:30]}  Bg3 {[%clk 0:00:18]} 34. Re2 {[%clk 0:00:27]}  Nh3 {[%clk 0:00:08]} 35. Rg2 {[%clk 0:00:27]}  Nf2 {[%clk 0:00:05]} 36. e5 {[%clk 0:00:21]}  d5 {[%clk 0:00:05]} 37. f5 {[%clk 0:00:19]}  Ne4 {[%clk 0:00:06]} 38. Bxh6 {[%clk 0:00:13]}  Rh7 {[%clk 0:00:06]} 39. Bd2 {[%clk 0:00:03]}  Rxh5 {[%clk 0:00:07]} 40. e6 {[%clk 0:00:03]}  fxe6 {[%clk 0:00:07]} 41. fxe6 {[%clk 0:00:04]}  Re5 {[%clk 0:00:07]} 42. Rxg3 {[%clk 0:00:04]}  Rxe6 {[%clk 0:00:06]} 43. Bf4+ {[%clk 0:00:04]}  Ka7 {[%clk 0:00:06]} 44. c4 {[%clk 0:00:05]}  Nxg3 {[%clk 0:00:06]} 45. Bxg3 {[%clk 0:00:04]}  Re2+ {[%clk 0:00:06]} 46. Kd3 {[%clk 0:00:03]}  Rg2 {[%clk 0:00:06]} 47. Be5 {[%clk 0:00:03]}  dxc4+ {[%clk 0:00:05]} 48. Bxc4 {[%clk 0:00:03]}  Rg5 {[%clk 0:00:05]} 49. Bd4 {[%clk 0:00:02]}  Rh5 {[%clk 0:00:05]} 50. Be3 {[%clk 0:00:03]}  Rh3 {[%clk 0:00:06]} 51. a4 {[%clk 0:00:03]}  Ka8 {[%clk 0:00:05]} 52. Kd2 {[%clk 0:00:03]}  Rh2+ {[%clk 0:00:05]} 53. Be2 {[%clk 0:00:01]}  b5 {[%clk 0:00:06]} 54. a5 {[%clk 0:00:02]}  Rh5 {[%clk 0:00:04]} 55. Bc5 {[%clk 0:00:02]}  Rd5+ {[%clk 0:00:04]} 56. Bd3 {[%clk 0:00:03]}  Rd7 {[%clk 0:00:05]} 57. Kc3 {[%clk 0:00:03]}  Rg7 {[%clk 0:00:05]} 58. Be4 {[%clk 0:00:04]}  Rg3+ {[%clk 0:00:06]} 59. Kd4 {[%clk 0:00:04]}  Rg4 {[%clk 0:00:07]} 60. Ke5 {[%clk 0:00:05]}  Rg5+ {[%clk 0:00:07]} 61. Kd6 {[%clk 0:00:04]}  Rg3 {[%clk 0:00:07]} 62. Kc7 {[%clk 0:00:03]}  Rg7+ {[%clk 0:00:07]} 63. Kb6 {[%clk 0:00:04]}  Kb8 {[%clk 0:00:05]} 64. Bd6+ {[%clk 0:00:03]}  Kc8 {[%clk 0:00:06]} 65. Bf5+ {[%clk 0:00:04]}  Kd8 {[%clk 0:00:07]} 66. a6 {[%clk 0:00:04]}  bxa6 {[%clk 0:00:06]} 67. Kxa6 {[%clk 0:00:05]}  Rf7 {[%clk 0:00:06]} 68. Be4 {[%clk 0:00:05]}  Rf6 {[%clk 0:00:06]} 69. Bc5 {[%clk 0:00:04]}  Kc7 {[%clk 0:00:06]} 70. Bb6+ {[%clk 0:00:04]}  Kd6 {[%clk 0:00:06]} 71. Kb7 {[%clk 0:00:04]}  Rf7+ {[%clk 0:00:06]} 72. Kc8 {[%clk 0:00:04]}  Re7 {[%clk 0:00:03]} 73. Bf3 {[%clk 0:00:03]}  Rf7 {[%clk 0:00:03]} 74. Bc5+ {[%clk 0:00:04]}  Ke5 {[%clk 0:00:03]} 75. Bxc6 {[%clk 0:00:04]}  Rh7 {[%clk 0:00:02]} 76. Kb8 {[%clk 0:00:04]}  Rh8+ {[%clk 0:00:03]} 77. Kc7 {[%clk 0:00:04]}  Rh7+ {[%clk 0:00:04]} 78. Kb6 {[%clk 0:00:05]}  Rh6 {[%clk 0:00:05]} 79. Kxb5 {[%clk 0:00:05]}  Ke6 {[%clk 0:00:05]} 80. Kb6 {[%clk 0:00:06]}  Rh5 {[%clk 0:00:05]} 81. b5 {[%clk 0:00:06]}  Rh2 {[%clk 0:00:06]} 82. Kc7 {[%clk 0:00:06]}  Rc2 {[%clk 0:00:06]} 83. Bd4 {[%clk 0:00:05]}  Rd2 {[%clk 0:00:06]} 84. Be3 {[%clk 0:00:05]}  Re2 {[%clk 0:00:07]} 85. Bf4 {[%clk 0:00:06]}  Rf2 {[%clk 0:00:07]} 86. Bg3 {[%clk 0:00:06]}  Rf7+ {[%clk 0:00:07]} 87. Kb6 {[%clk 0:00:06]}  Rg7 {[%clk 0:00:08]} 88. Bc7 {[%clk 0:00:05]}  Rg1 {[%clk 0:00:07]} 89. Kb7 {[%clk 0:00:05]}  Rb1 {[%clk 0:00:04]} 90. b6 {[%clk 0:00:06]}  Rb2 {[%clk 0:00:05]} 91. Kc8 {[%clk 0:00:06]}  Rxb6 {[%clk 0:00:02]} 92. Bxb6 {[%clk 0:00:06]}  Kd6 {[%clk 0:00:02]} 93. Kb7 {[%clk 0:00:07]}  Ke5 {[%clk 0:00:03]} 94. Kc7 {[%clk 0:00:08]}  Kf4 {[%clk 0:00:04]} 95. Kd6 {[%clk 0:00:08]}  Kf5 {[%clk 0:00:05]} 96. Bd7+ {[%clk 0:00:08]}  Kf4 {[%clk 0:00:05]} 97. Kd5 {[%clk 0:00:08]}  Kg5 {[%clk 0:00:06]} 98. Ke5 {[%clk 0:00:09]}  Kh4 {[%clk 0:00:07]} 99. Kf4 {[%clk 0:00:08]}  Kh5 {[%clk 0:00:07]} 100. Bf2 {[%clk 0:00:08]}  Kg6 {[%clk 0:00:08]} 101. Ke5 {[%clk 0:00:08]}  Kf7 {[%clk 0:00:08]} 102. Bf5 {[%clk 0:00:08]}  Kg7 {[%clk 0:00:08]} 103. Bc5 {[%clk 0:00:09]}  Kh6 {[%clk 0:00:09]} 104. Kf6 {[%clk 0:00:09]}  Kh5 {[%clk 0:00:10]} 105. Bf2 {[%clk 0:00:09]}  Kh6 {[%clk 0:00:10]} 106. Bg4 {[%clk 0:00:10]}  Kh7 {[%clk 0:00:10]} 107. Be3 {[%clk 0:00:10]}  Kg8 {[%clk 0:00:10]} 108. Bh6 {[%clk 0:00:09]}  Kh7 {[%clk 0:00:10]} 109. Bf8 {[%clk 0:00:09]}  Kg8 {[%clk 0:00:11]} 110. Ke7 {[%clk 0:00:10]}  Kh7 {[%clk 0:00:11]} 111. Kf7 {[%clk 0:00:09]}  Kh8 {[%clk 0:00:11]} 112. Bg7+ {[%clk 0:00:10]} 1-0


[Site "https://www.chess.com"]

[Event "Titled Tuesday Blitz February 14 Early 2023"]
[White "Liyanage, Ranindu Dilshan"]
[Black "Mitrabha, Guha"]
[WhiteFideId "9915834"]
[BlackFideId "5057000"]
[WhiteElo "2342"]
[BlackElo "2507"]
[Result "0-1"]
[Round "03"]
[TimeControl "180+2"]
[Date "2023.02.15"]
[WhiteClock "0:00:03"]
[BlackClock "0:00:51"]

1. c4 {[%clk 0:03:00]}  Nf6 {[%clk 0:02:56]} 2. Nc3 {[%clk 0:02:59]}  c5 {[%clk 0:02:55]} 3. Nf3 {[%clk 0:02:58]}  e6 {[%clk 0:02:55]} 4. g3 {[%clk 0:02:51]}  d5 {[%clk 0:02:55]} 5. cxd5 {[%clk 0:02:48]}  Nxd5 {[%clk 0:02:55]} 6. d4 {[%clk 0:02:49]}  Nxc3 {[%clk 0:02:52]} 7. bxc3 {[%clk 0:02:50]}  cxd4 {[%clk 0:02:52]} 8. cxd4 {[%clk 0:02:50]}  Bb4+ {[%clk 0:02:53]} 9. Bd2 {[%clk 0:02:50]}  Bxd2+ {[%clk 0:02:53]} 10. Qxd2 {[%clk 0:02:50]}  b6 {[%clk 0:02:54]} 11. Bg2 {[%clk 0:02:50]}  Bb7 {[%clk 0:02:55]} 12. O-O {[%clk 0:02:51]}  O-O {[%clk 0:02:55]} 13. Rac1 {[%clk 0:02:49]}  Nd7 {[%clk 0:02:55]} 14. Rfd1 {[%clk 0:02:45]}  Rc8 {[%clk 0:02:53]} 15. Qf4 {[%clk 0:02:41]}  Nf6 {[%clk 0:02:51]} 16. h4 {[%clk 0:02:16]}  h6 {[%clk 0:02:47]} 17. Qd2 {[%clk 0:01:57]}  Qe7 {[%clk 0:02:46]} 18. Ne5 {[%clk 0:01:54]}  Bxg2 {[%clk 0:02:46]} 19. Kxg2 {[%clk 0:01:55]}  Qb7+ {[%clk 0:02:41]} 20. f3 {[%clk 0:01:53]}  Rfd8 {[%clk 0:02:40]} 21. Rxc8 {[%clk 0:01:40]}  Rxc8 {[%clk 0:02:41]} 22. Rc1 {[%clk 0:01:40]}  Rd8 {[%clk 0:02:39]} 23. e3 {[%clk 0:01:35]}  Nd5 {[%clk 0:02:34]} 24. e4 {[%clk 0:01:29]}  Ne7 {[%clk 0:02:27]} 25. Qf4 {[%clk 0:01:22]}  f6 {[%clk 0:02:25]} 26. Nd3 {[%clk 0:01:05]}  Qa6 {[%clk 0:02:10]} 27. Qc7 {[%clk 0:00:51]}  Re8 {[%clk 0:01:32]} 28. Nf4 {[%clk 0:00:44]}  Qxa2+ {[%clk 0:01:26]} 29. Rc2 {[%clk 0:00:43]}  Qb3 {[%clk 0:01:22]} 30. Kh3 {[%clk 0:00:20]}  Qxf3 {[%clk 0:01:15]} 31. Qd7 {[%clk 0:00:18]}  Kf8 {[%clk 0:01:08]} 32. Nxe6+ {[%clk 0:00:17]}  Kf7 {[%clk 0:01:08]} 33. Nf4 {[%clk 0:00:07]}  Qh1+ {[%clk 0:01:07]} 34. Rh2 {[%clk 0:00:04]}  Qxe4 {[%clk 0:01:06]} 35. d5 {[%clk 0:00:03]}  g5 {[%clk 0:00:52]} 36. hxg5 {[%clk 0:00:02]}  hxg5 {[%clk 0:00:53]} 37. Kg4 {[%clk 0:00:03]}  gxf4 {[%clk 0:00:51]} 38. gxf4 {[%clk 0:00:03]}  Rg8+ {[%clk 0:00:51]} 0-1


[Site "https://www.chess.com"]

[Event "Titled Tuesday Blitz February 14 Early 2023"]
[White "Makarian, Rudik"]
[Black "Korchmar, Vasiliy"]
[WhiteFideId "44105681"]
[BlackFideId "24131750"]
[WhiteElo "2545"]
[BlackElo "2438"]
[Result "0-1"]
[Round "03"]
[TimeControl "180+2"]
[Date "2023.02.15"]
[WhiteClock "0:00:01"]
[BlackClock "0:00:11"]

1. d4 {[%clk 0:02:59]}  d5 {[%clk 0:02:59]} 2. c4 {[%clk 0:02:58]}  c6 {[%clk 0:03:00]} 3. Nf3 {[%clk 0:02:58]}  Nf6 {[%clk 0:03:00]} 4. Nc3 {[%clk 0:02:58]}  e6 {[%clk 0:03:00]} 5. g3 {[%clk 0:02:56]}  Nbd7 {[%clk 0:02:50]} 6. Bg2 {[%clk 0:02:55]}  dxc4 {[%clk 0:02:50]} 7. O-O {[%clk 0:02:55]}  Bd6 {[%clk 0:02:46]} 8. e4 {[%clk 0:02:27]}  e5 {[%clk 0:02:44]} 9. Qe2 {[%clk 0:02:27]}  O-O {[%clk 0:02:16]} 10. Rd1 {[%clk 0:02:25]}  exd4 {[%clk 0:02:08]} 11. Nxd4 {[%clk 0:02:09]}  Ne5 {[%clk 0:02:04]} 12. h3 {[%clk 0:02:09]}  Nd3 {[%clk 0:01:58]} 13. Be3 {[%clk 0:01:57]}  Bc5 {[%clk 0:01:44]} 14. Nc2 {[%clk 0:01:56]}  Bxe3 {[%clk 0:01:20]} 15. Nxe3 {[%clk 0:01:57]}  b5 {[%clk 0:01:17]} 16. e5 {[%clk 0:01:39]}  Nd5 {[%clk 0:00:49]} 17. Ncxd5 {[%clk 0:01:21]}  cxd5 {[%clk 0:00:50]} 18. Bxd5 {[%clk 0:01:21]}  Bxh3 {[%clk 0:00:50]} 19. Qh5 {[%clk 0:00:46]}  Be6 {[%clk 0:00:49]} 20. Bxa8 {[%clk 0:00:30]}  Qxa8 {[%clk 0:00:50]} 21. Rd2 {[%clk 0:00:17]}  Qe4 {[%clk 0:00:50]} 22. Qh4 {[%clk 0:00:11]}  Qxe5 {[%clk 0:00:46]} 23. Rb1 {[%clk 0:00:11]}  h6 {[%clk 0:00:38]} 24. b3 {[%clk 0:00:09]}  Rc8 {[%clk 0:00:34]} 25. bxc4 {[%clk 0:00:09]}  bxc4 {[%clk 0:00:35]} 26. Rbd1 {[%clk 0:00:09]}  a5 {[%clk 0:00:30]} 27. Qh1 {[%clk 0:00:05]}  a4 {[%clk 0:00:22]} 28. Qb7 {[%clk 0:00:03]}  Rb8 {[%clk 0:00:22]} 29. Qc6 {[%clk 0:00:01]}  Rc8 {[%clk 0:00:20]} 30. Qb7 {[%clk 0:00:02]}  a3 {[%clk 0:00:20]} 31. Qa6 {[%clk 0:00:01]}  Qe4 {[%clk 0:00:16]} 32. Rxd3 {[%clk 0:00:01]}  cxd3 {[%clk 0:00:16]} 33. Qxa3 {[%clk 0:00:01]}  Rd8 {[%clk 0:00:12]} 34. Qa5 {[%clk 0:00:01]}  Qd4 {[%clk 0:00:11]} 0-1


[Site "https://www.chess.com"]

[Event "Titled Tuesday Blitz February 14 Early 2023"]
[White "Bacrot, Etienne"]
[Black "Jakubowski, Krzysztof"]
[WhiteFideId "605506"]
[BlackFideId "1112848"]
[WhiteElo "2667"]
[BlackElo "2486"]
[Result "1-0"]
[Round "03"]
[TimeControl "180+2"]
[Date "2023.02.15"]
[WhiteClock "0:00:05"]
[BlackClock "0:00:01"]

1. e4 {[%clk 0:03:00]}  c5 {[%clk 0:02:57]} 2. Nf3 {[%clk 0:03:01]}  e6 {[%clk 0:02:54]} 3. c3 {[%clk 0:03:00]}  Nf6 {[%clk 0:02:52]} 4. e5 {[%clk 0:03:00]}  Nd5 {[%clk 0:02:50]} 5. d4 {[%clk 0:03:00]}  cxd4 {[%clk 0:02:50]} 6. cxd4 {[%clk 0:03:01]}  d6 {[%clk 0:02:49]} 7. a3 {[%clk 0:02:59]}  Bd7 {[%clk 0:02:40]} 8. Nbd2 {[%clk 0:02:48]}  Bc6 {[%clk 0:02:35]} 9. Ne4 {[%clk 0:02:47]}  dxe5 {[%clk 0:02:27]} 10. dxe5 {[%clk 0:02:45]}  Nd7 {[%clk 0:02:15]} 11. Bd3 {[%clk 0:02:16]}  Qc7 {[%clk 0:02:09]} 12. Nd6+ {[%clk 0:02:02]}  Bxd6 {[%clk 0:02:07]} 13. exd6 {[%clk 0:02:02]}  Qxd6 {[%clk 0:02:07]} 14. O-O {[%clk 0:02:02]}  O-O {[%clk 0:02:00]} 15. Re1 {[%clk 0:02:01]}  h6 {[%clk 0:01:48]} 16. Nd4 {[%clk 0:01:50]}  Rac8 {[%clk 0:01:42]} 17. Nxc6 {[%clk 0:01:06]}  Rxc6 {[%clk 0:01:41]} 18. Bd2 {[%clk 0:00:58]}  Rfc8 {[%clk 0:01:37]} 19. Bb5 {[%clk 0:00:48]}  R6c7 {[%clk 0:01:36]} 20. Bf1 {[%clk 0:00:45]}  Qb6 {[%clk 0:01:22]} 21. b4 {[%clk 0:00:39]}  N7f6 {[%clk 0:01:17]} 22. Bd3 {[%clk 0:00:35]}  Rd7 {[%clk 0:00:55]} 23. Qf3 {[%clk 0:00:32]}  Rcd8 {[%clk 0:00:54]} 24. Rad1 {[%clk 0:00:29]}  Qc7 {[%clk 0:00:43]} 25. Bb5 {[%clk 0:00:27]}  Rd6 {[%clk 0:00:42]} 26. g3 {[%clk 0:00:22]}  Qc2 {[%clk 0:00:34]} 27. Bd3 {[%clk 0:00:15]}  Qb2 {[%clk 0:00:31]} 28. Bc1 {[%clk 0:00:15]}  Qc3 {[%clk 0:00:30]} 29. Bd2 {[%clk 0:00:12]}  Qc6 {[%clk 0:00:28]} 30. Bc1 {[%clk 0:00:10]}  Qa4 {[%clk 0:00:28]} 31. Be2 {[%clk 0:00:09]}  Rc8 {[%clk 0:00:24]} 32. Rd3 {[%clk 0:00:09]}  Rdc6 {[%clk 0:00:24]} 33. Bd2 {[%clk 0:00:09]}  Qc2 {[%clk 0:00:21]} 34. Rd4 {[%clk 0:00:09]}  Qa2 {[%clk 0:00:20]} 35. Bd3 {[%clk 0:00:08]}  Qb2 {[%clk 0:00:19]} 36. Rb1 {[%clk 0:00:07]}  Qa2 {[%clk 0:00:17]} 37. Re1 {[%clk 0:00:07]}  Kf8 {[%clk 0:00:16]} 38. Bb1 {[%clk 0:00:07]}  Qb2 {[%clk 0:00:16]} 39. Qd3 {[%clk 0:00:07]}  R6c7 {[%clk 0:00:10]} 40. b5 {[%clk 0:00:07]}  b6 {[%clk 0:00:10]} 41. Bb4+ {[%clk 0:00:06]}  Kg8 {[%clk 0:00:06]} 42. Bd2 {[%clk 0:00:05]}  Rc5 {[%clk 0:00:01]} 43. h4 {[%clk 0:00:05]} 1-0


[Site "https://www.chess.com"]

[Event "Titled Tuesday Blitz February 14 Early 2023"]
[White "Seemann, Jakub"]
[Black "Indjic, Aleksandar"]
[WhiteFideId "21874697"]
[BlackFideId "911925"]
[WhiteElo "2446"]
[BlackElo "2618"]
[Result "0-1"]
[Round "03"]
[TimeControl "180+2"]
[Date "2023.02.15"]
[WhiteClock "0:00:25"]
[BlackClock "0:01:26"]

1. Nf3 {[%clk 0:03:00]}  d5 {[%clk 0:02:59]} 2. e3 {[%clk 0:03:00]}  Nf6 {[%clk 0:02:58]} 3. c4 {[%clk 0:03:00]}  e6 {[%clk 0:02:58]} 4. b3 {[%clk 0:03:01]}  Bd6 {[%clk 0:02:57]} 5. Bb2 {[%clk 0:03:01]}  b6 {[%clk 0:02:58]} 6. Nc3 {[%clk 0:02:59]}  a6 {[%clk 0:02:55]} 7. cxd5 {[%clk 0:02:58]}  exd5 {[%clk 0:02:56]} 8. Rc1 {[%clk 0:02:53]}  Bb7 {[%clk 0:02:55]} 9. d4 {[%clk 0:02:53]}  Nbd7 {[%clk 0:02:54]} 10. Bd3 {[%clk 0:02:54]}  Qe7 {[%clk 0:02:52]} 11. O-O {[%clk 0:02:54]}  h5 {[%clk 0:02:52]} 12. Ne2 {[%clk 0:02:52]}  O-O-O {[%clk 0:02:45]} 13. b4 {[%clk 0:02:44]}  Kb8 {[%clk 0:02:44]} 14. Qa4 {[%clk 0:02:42]}  b5 {[%clk 0:02:42]} 15. Qb3 {[%clk 0:02:42]}  Ne4 {[%clk 0:02:38]} 16. a4 {[%clk 0:02:37]}  c6 {[%clk 0:02:38]} 17. Bxe4 {[%clk 0:02:31]}  dxe4 {[%clk 0:02:37]} 18. Ne5 {[%clk 0:02:31]}  Nxe5 {[%clk 0:02:09]} 19. dxe5 {[%clk 0:02:30]}  Bxb4 {[%clk 0:02:06]} 20. Nd4 {[%clk 0:02:27]}  c5 {[%clk 0:01:47]} 21. axb5 {[%clk 0:02:14]}  cxd4 {[%clk 0:01:46]} 22. Rc4 {[%clk 0:01:45]}  a5 {[%clk 0:01:42]} 23. Rxd4 {[%clk 0:01:33]}  Rxd4 {[%clk 0:01:41]} 24. Bxd4 {[%clk 0:01:34]}  Rc8 {[%clk 0:01:40]} 25. Ra1 {[%clk 0:01:03]}  Qe6 {[%clk 0:01:38]} 26. Qd1 {[%clk 0:00:51]}  g6 {[%clk 0:01:37]} 27. h3 {[%clk 0:00:49]}  Bd5 {[%clk 0:01:31]} 28. b6 {[%clk 0:00:42]}  Kb7 {[%clk 0:01:31]} 29. Qe2 {[%clk 0:00:38]}  Bc4 {[%clk 0:01:30]} 30. Qb2 {[%clk 0:00:38]}  Bd3 {[%clk 0:01:28]} 31. Rc1 {[%clk 0:00:24]}  Rxc1+ {[%clk 0:01:27]} 32. Qxc1 {[%clk 0:00:25]}  Qc4 {[%clk 0:01:26]} 0-1


[Site "https://www.chess.com"]

[Event "Titled Tuesday Blitz February 14 Early 2023"]
[White "Kumala, Aleksander"]
[Black "Grigorjev, Iljya"]
[WhiteFideId "1141880"]
[BlackFideId "24159565"]
[WhiteElo "2165"]
[BlackElo "2426"]
[Result "0-1"]
[Round "03"]
[TimeControl "180+2"]
[Date "2023.02.15"]
[WhiteClock "0:00:03"]
[BlackClock "0:00:06"]

1. d4 {[%clk 0:03:00]}  Nf6 {[%clk 0:03:00]} 2. Bg5 {[%clk 0:03:01]}  d5 {[%clk 0:03:00]} 3. Bxf6 {[%clk 0:03:00]}  exf6 {[%clk 0:03:01]} 4. e3 {[%clk 0:03:01]}  Bd6 {[%clk 0:03:01]} 5. Bd3 {[%clk 0:03:02]}  O-O {[%clk 0:02:58]} 6. Qf3 {[%clk 0:03:01]}  c5 {[%clk 0:02:53]} 7. c3 {[%clk 0:02:59]}  Qb6 {[%clk 0:02:51]} 8. b3 {[%clk 0:02:23]}  a5 {[%clk 0:02:51]} 9. Nd2 {[%clk 0:02:11]}  a4 {[%clk 0:02:49]} 10. Rb1 {[%clk 0:02:10]}  axb3 {[%clk 0:02:46]} 11. axb3 {[%clk 0:02:06]}  cxd4 {[%clk 0:02:42]} 12. exd4 {[%clk 0:02:05]}  Ra2 {[%clk 0:02:33]} 13. Ne2 {[%clk 0:02:02]}  g6 {[%clk 0:02:31]} 14. Qxf6 {[%clk 0:01:55]}  Re8 {[%clk 0:02:23]} 15. h4 {[%clk 0:01:49]}  Bf5 {[%clk 0:01:47]} 16. Bxf5 {[%clk 0:01:14]}  Rxd2 {[%clk 0:01:47]} 17. Bg4 {[%clk 0:01:15]}  Rc2 {[%clk 0:01:20]} 18. h5 {[%clk 0:01:08]}  Nd7 {[%clk 0:01:15]} 19. Qh4 {[%clk 0:01:00]}  Nf8 {[%clk 0:00:47]} 20. hxg6 {[%clk 0:01:00]}  fxg6 {[%clk 0:00:48]} 21. Bf3 {[%clk 0:00:54]}  Qa5 {[%clk 0:00:46]} 22. b4 {[%clk 0:00:49]}  Qa2 {[%clk 0:00:44]} 23. O-O {[%clk 0:00:31]}  Rcxe2 {[%clk 0:00:44]} 24. Bxe2 {[%clk 0:00:30]}  Qxe2 {[%clk 0:00:45]} 25. Qg5 {[%clk 0:00:19]}  Qe6 {[%clk 0:00:39]} 26. g3 {[%clk 0:00:17]}  Qf5 {[%clk 0:00:36]} 27. Qxf5 {[%clk 0:00:15]}  gxf5 {[%clk 0:00:37]} 28. Rfe1 {[%clk 0:00:15]}  Rc8 {[%clk 0:00:38]} 29. Re3 {[%clk 0:00:12]}  Kf7 {[%clk 0:00:36]} 30. Rbe1 {[%clk 0:00:12]}  Ng6 {[%clk 0:00:24]} 31. Kg2 {[%clk 0:00:12]}  f4 {[%clk 0:00:23]} 32. gxf4 {[%clk 0:00:12]}  Nxf4+ {[%clk 0:00:24]} 33. Kf3 {[%clk 0:00:12]}  Ng6 {[%clk 0:00:23]} 34. Rh1 {[%clk 0:00:13]}  Kg7 {[%clk 0:00:22]} 35. Ke2 {[%clk 0:00:11]}  Bf4 {[%clk 0:00:20]} 36. Rf3 {[%clk 0:00:10]}  Bg5 {[%clk 0:00:20]} 37. Kd3 {[%clk 0:00:08]}  Nf4+ {[%clk 0:00:19]} 38. Kc2 {[%clk 0:00:09]}  Ne6 {[%clk 0:00:19]} 39. Kd3 {[%clk 0:00:07]}  h6 {[%clk 0:00:18]} 40. Re1 {[%clk 0:00:07]}  Nf4+ {[%clk 0:00:18]} 41. Kc2 {[%clk 0:00:07]}  Kf6 {[%clk 0:00:18]} 42. Re5 {[%clk 0:00:06]}  Kg6 {[%clk 0:00:16]} 43. Rg3 {[%clk 0:00:03]}  Ra8 {[%clk 0:00:15]} 44. Kb3 {[%clk 0:00:03]}  Ra1 {[%clk 0:00:15]} 45. Rf3 {[%clk 0:00:03]}  Rb1+ {[%clk 0:00:15]} 46. Kc2 {[%clk 0:00:03]}  Rf1 {[%clk 0:00:15]} 47. Kb3 {[%clk 0:00:04]}  Rg1 {[%clk 0:00:09]} 48. Rg3 {[%clk 0:00:03]}  Rb1+ {[%clk 0:00:06]} 49. Kc2 {[%clk 0:00:03]}  Rf1 {[%clk 0:00:07]} 50. Rf3 {[%clk 0:00:04]}  Rg1 {[%clk 0:00:06]} 51. Rg3 {[%clk 0:00:04]}  Rh1 {[%clk 0:00:07]} 52. Kb3 {[%clk 0:00:04]}  Rh2 {[%clk 0:00:07]} 53. Rf3 {[%clk 0:00:05]}  Rg2 {[%clk 0:00:08]} 54. Re8 {[%clk 0:00:04]}  Kf5 {[%clk 0:00:07]} 55. Re5+ {[%clk 0:00:02]}  Kg4 {[%clk 0:00:08]} 56. Rg3+ {[%clk 0:00:01]}  Rxg3 {[%clk 0:00:08]} 57. fxg3 {[%clk 0:00:02]}  Kxg3 {[%clk 0:00:09]} 58. c4 {[%clk 0:00:03]}  dxc4+ {[%clk 0:00:08]} 59. Kxc4 {[%clk 0:00:04]}  Kg4 {[%clk 0:00:07]} 60. d5 {[%clk 0:00:04]}  h5 {[%clk 0:00:05]} 61. d6 {[%clk 0:00:04]}  h4 {[%clk 0:00:05]} 62. d7 {[%clk 0:00:03]}  Bf6 {[%clk 0:00:06]} 0-1


[Site "https://www.chess.com"]